bitfinex-derivatives/quotes_SOLF0:USTF0_20241027
["timestamp","ask_amount","ask_price","bid_price","bid_amount"]
[1729995005459,12.47274384,172.71,172.63,1.1986]
[1729995005751,12.47274384,172.71,172.66,8.01274384]
[1729995007347,12.47274384,172.71,172.69,2.8986]
[1729995007752,8.01274384,172.7,172.67,5.1851738]
[1729995007953,10.91134384,172.7,172.65,8.08568292]
[1729995008152,8.01274384,172.7,172.64,8.01274384]
[1729995008750,12.47274384,172.69,172.63,1.44967774]
[1729995008950,12.47274384,172.69,172.64,5.18966459]
[1729995009155,12.47274384,172.69,172.63,21.74107962]
[1729995009156,12.47274384,172.69,172.66,2.899]
[1729995009551,12.47274384,172.69,172.63,8.01274384]
[1729995009752,12.47274384,172.69,172.64,5.18792453]
[1729995010057,12.47274384,172.69,172.63,9.46239844]
[1729995010257,12.47274384,172.69,172.64,5.18687127]
[1729995010551,12.47274384,172.69,172.68,2.8988]
[1729995010757,8.01274384,172.72,172.66,8.01274384]
[1729995011057,4.46,172.71,172.67,8.01274384]
[1729995011663,4.46,172.71,172.68,2.8988]
[1729995011962,4.46,172.71,172.67,8.01274384]
[1729995012264,4.46,172.71,172.65,12.53322454]
[1729995012563,4.46,172.71,172.66,5.1886226]
[1729995012865,1.2255,172.74,172.65,12.53322454]
[1729995013052,4.46,172.73,172.67,12.53322454]
[1729995013255,4.46,172.73,172.72,2.8981]
[1729995016666,2.5096,172.83,172.76,2.8974]
[1729995016667,12.53322454,172.82,172.76,2.8974]
[1729995016863,4.46,172.81,172.76,2.8974]
[1729995017368,4.46,172.81,172.77,2.8973]
[1729995017571,15.42972454,172.82,172.77,2.8973]
[1729995017868,4.46,172.81,172.77,2.8973]
[1729995019167,4.46,172.81,172.72,12.53322454]
[1729995019469,4.46,172.8,172.78,2.8971]
[1729995025464,4.46,172.8,172.79,2.897]
[1729995026965,4.46,172.8,172.72,12.53322454]
[1729995026966,5.406,172.83,172.8,2.8968]
[1729995027271,4.46,172.82,172.74,12.53322454]
[1729995027667,1.276,172.83,172.74,12.53322454]
[1729995027971,4.46,172.82,172.76,12.53322454]
[1729995028374,1.2046,172.84,172.76,12.53322454]
[1729995028375,68.83322454,172.86,172.76,12.53322454]
[1729995028573,4.38,172.85,172.76,12.53322454]
[1729995028871,4.38,172.85,172.77,1.1681]
[1729995029070,4.38,172.85,172.79,2.8969]
[1729995029273,4.38,172.85,172.77,1.1681]
[1729995030370,4.38,172.85,172.81,2.8965]
[1729995032273,8.01112437,172.84,172.81,2.8965]
[1729995033361,8.01112437,172.84,172.79,8.01112437]
[1729995033362,8.01112437,172.82,172.77,1.1681]
[1729995033676,8.01112437,172.78,172.71,8.30836359]
[1729995033876,8.01112437,172.73,172.69,8.30836359]
[1729995034076,12.39112437,172.73,172.71,2.8983]
[1729995034786,8.01112437,172.72,172.69,5.19741296]
[1729995034972,8.01112437,172.72,172.65,9.25292437]
[1729995035283,8.01112437,172.72,172.6,4.38]
[1729995035284,8.01112437,172.68,172.64,8.01112437]
[1729995035468,5.33734822,172.81,172.64,2.8994]
[1729995035469,12.39112437,172.67,172.64,2.8994]
[1729995035665,4.38,172.66,172.61,8.01112437]
[1729995035881,4.38,172.66,172.62,6.65083887]
[1729995036079,4.38,172.66,172.63,8.10073083]
[1729995036279,4.38,172.66,172.63,2.8996]
[1729995038579,4.38,172.66,172.65,2.8993]
[1729995041673,5.7908,172.89,172.61,12.528014]
[1729995041674,17.35,172.88,172.61,12.528014]
[1729995041873,4.38,172.73,172.64,12.528014]
[1729995042271,7.278,172.73,172.68,2.8988]
[1729995043878,2.8982,172.72,172.66,2.899]
[1729995044782,2.8982,172.72,172.67,2.8989]
[1729995046675,2.8982,172.72,172.64,12.528014]
[1729995046882,2.8982,172.72,172.68,2.8988]
[1729995047477,21.002114,172.73,172.64,12.528014]
[1729995047986,18.104014,172.73,172.64,12.528014]
[1729995048284,18.104014,172.73,172.66,2.8991]
[1729995048285,2.8985,172.71,172.66,2.8991]
[1729995049889,15.426514,172.71,172.66,2.8991]
[1729995051777,12.528014,172.68,172.6,5.18612826]
[1729995051978,5.30634535,172.72,172.57,5.18810283]
[1729995051979,12.528014,172.66,172.57,5.18810283]
[1729995052185,4.38,172.65,172.62,2.8997]
[1729995052384,4.38,172.65,172.56,12.528014]
[1729995052577,4.38,172.65,172.56,23.13938396]
[1729995052778,4.38,172.65,172.57,5.18810283]
[1729995053283,4.38,172.65,172.56,12.528014]
[1729995053677,4.38,172.65,172.56,19.16586286]
[1729995053878,4.38,172.65,172.57,5.18777797]
[1729995054290,4.38,172.65,172.56,17.71579197]
[1729995054586,4.38,172.65,172.61,2.8999]
[1729995058483,8.02002398,172.64,172.61,2.8999]
[1729995060582,4.38,172.65,172.63,2.8995]
[1729995060991,8.02002398,172.67,172.63,2.8995]
[1729995061188,4.38,172.64,172.63,2.8995]
[1729995061585,20.03650036,172.89,172.63,8.02002398]
[1729995061794,6.874,172.8,172.71,8.02002398]
[1729995061997,8.02002398,172.77,172.71,8.02002398]
[1729995062189,10.91722398,172.78,172.73,8.02002398]
[1729995062387,4.38,172.79,172.7,12.52657006]
[1729995062993,2.8973,172.78,172.73,2.8979]
[1729995064288,2.8973,172.78,172.72,2.8981]
[1729995064289,2.8974,172.77,172.72,2.8981]
[1729995064489,2.8974,172.77,172.68,12.52657006]
[1729995066095,12.52657006,172.78,172.68,12.52657006]
[1729995066300,15.42367006,172.78,172.68,12.52657006]
[1729995066800,15.42367006,172.78,172.73,2.8978]
[1729995070499,2.8973,172.77,172.73,2.8978]
[1729995070899,4.38,172.79,172.7,12.52657006]
[1729995071206,4.38,172.78,172.75,2.8975]
[1729995071591,4.38,172.77,172.75,2.8975]
[1729995075302,4.38,172.77,172.7,12.52657006]
[1729995075503,4.38,172.79,172.75,12.52657006]
[1729995075710,12.52657006,172.85,172.75,12.52657006]
[1729995075711,4.38,172.8,172.75,12.52657006]
[1729995075908,83.13229693,172.91,172.77,12.52657006]
[1729995076207,8.0595011,172.97,172.82,12.52657006]
[1729995076208,4.38,172.9,172.82,12.52657006]
[1729995076509,1.1707,172.96,172.8,12.52657006]
[1729995076510,4.38,172.89,172.8,12.52657006]
[1729995076703,4.38,172.88,172.8,12.52657006]
[1729995076898,7.2755,172.88,172.83,2.8961]
[1729995077298,7.2755,172.88,172.8,12.52657006]
[1729995077505,7.2755,172.88,172.84,2.8961]
[1729995084929,7.2755,172.88,172.83,2.8962]
[1729995088333,8.00901479,172.87,172.84,2.8961]
[1729995090631,4.46,172.89,172.86,8.00901479]
[1729995090832,4.46,172.89,172.88,8.00901479]
[1729995091025,4.46,172.89,172.78,3.5585]
[1729995091226,4.46,172.89,172.87,8.00901479]
[1729995091520,4.46,172.89,172.78,8.0185]
[1729995091521,25.4095011,173.09,172.88,8.00901479]
[1729995091824,8.00901479,172.97,172.91,8.00901479]
[1729995092429,59.20738742,173.01,172.91,2.8948]
[1729995092430,10.90331479,172.95,172.91,2.8948]
[1729995092730,4.46,172.94,172.91,2.8948]
[1729995093121,4.46,172.94,172.92,2.8948]
[1729995094928,4.46,172.93,172.92,2.8948]
[1729995096929,4.46,172.97,172.91,12.51562735]
[1729995097439,16.97562735,172.97,172.86,12.51562735]
[1729995097640,12.51562735,172.95,172.86,12.51562735]
[1729995097940,15.40992735,172.95,172.9,2.895]
[1729995098837,12.51562735,172.95,172.88,2.8953]
[1729995099133,4.46,172.97,172.88,12.51562735]
[1729995099330,4.46,172.97,172.89,3.7286]
[1729995100334,12.51562735,172.93,172.83,4.46]
[1729995100538,12.51562735,172.93,172.78,343.7942]
[1729995100539,4.46,172.92,172.84,3.663]
[1729995100838,4.46,172.92,172.88,2.8954]
[1729995106139,4.46,172.92,172.85,12.51562735]
[1729995107341,4.46,172.92,172.88,2.8953]
[1729995110739,4.46,172.92,172.85,12.51562735]
[1729995112743,4.46,172.92,172.88,2.8953]
[1729995114449,4.46,172.92,172.89,8.01240428]
[1729995115150,4.46,172.92,172.89,10.90770428]
[1729995118448,4.46,172.92,172.9,2.895]
[1729995120445,8.01240428,172.95,172.91,8.01240428]
[1729995120653,4.56,172.94,172.92,8.01240428]
[1729995121049,2.8943,172.95,172.94,2.8945]
[1729995121050,4.56,172.95,172.94,2.8945]
[1729995121250,4.56,172.97,172.93,8.01240428]
[1729995121455,4.56,172.97,172.96,8.01240428]
[1729995121753,4.56,172.97,172.96,10.90650428]
[1729995122252,4.56,172.97,172.96,8.01240428]
[1729995122455,4.56,172.97,172.95,8.01240428]
[1729995122955,4.56,172.97,172.84,3.663]
[1729995122956,8.01240428,172.96,172.84,3.663]
[1729995123155,8.01240428,172.95,172.9,8.01240428]
[1729995123553,8.01240428,172.96,172.91,8.01240428]
[1729995124057,4.56,172.97,172.92,8.01240428]
[1729995124253,2.8942,172.96,172.93,2.8946]
[1729995124450,2.8942,172.96,172.92,8.01240428]
[1729995124955,2.8942,172.96,172.92,10.90710428]
[1729995125255,10.90660428,172.96,172.92,2.8947]
[1729995126256,2.8942,172.96,172.92,2.8947]
[1729995126556,10.90660428,172.96,172.92,2.8947]
[1729995130354,10.90660428,172.96,172.91,8.01240428]
[1729995130560,4.56,172.95,172.93,2.8946]
[1729995131058,4.56,172.95,172.92,10.90710428]
[1729995133065,4.56,172.95,172.93,2.8946]
[1729995135369,4.56,172.95,172.92,8.01240428]
[1729995135559,4.56,172.95,172.93,2.8946]
[1729995135865,59.17333499,173.1,172.94,8.01240428]
[1729995136065,4.56,173.04,172.97,10.90630428]
[1729995136263,12.57240428,173.04,172.97,10.90630428]
[1729995136667,2.8932,173.02,172.97,10.90630428]
[1729995137263,4.56,173.01,172.98,2.8938]
[1729995137463,4.56,173.0,172.98,2.8938]
[1729995138467,4.56,173.0,172.97,8.01240428]
[1729995139165,2.893,173.03,172.97,8.01240428]
[1729995139166,2.893,173.03,172.99,2.8935]
[1729995139468,4.56,173.01,172.99,2.8935]
[1729995140167,4.56,173.01,172.99,10.90590428]
[1729995142369,4.56,173.01,173.0,2.8934]
[1729995142966,2.5079,173.07,173.0,8.01240428]
[1729995143171,4.56,173.06,173.0,8.01240428]
[1729995143476,2.8926,173.05,173.0,8.01240428]
[1729995143670,2.8926,173.05,173.01,2.8932]
[1729995146268,2.8928,173.04,173.01,2.8932]
[1729995148376,8.01240428,173.02,172.96,8.01240428]
[1729995148580,2.8935,173.0,172.96,10.90640428]
[1729995148869,2.8935,173.0,172.96,8.01240428]
[1729995149265,12.49240428,173.01,172.96,8.01240428]
[1729995149467,15.38570428,173.01,172.97,2.8939]
[1729995150280,7.3733,173.01,172.98,2.8938]
[1729995150665,1.2921,173.11,173.0,8.01240428]
[1729995150872,8.01240428,173.04,172.98,2.8938]
[1729995151170,12.49240428,173.04,172.98,8.01240428]
[1729995151570,4.48,173.04,172.99,8.01240428]
[1729995151771,7.3728,173.04,172.99,10.90590428]
[1729995152274,7.3728,173.04,173.01,8.01240428]
[1729995153765,2.893,173.03,173.01,8.01240428]
[1729995154176,4.48,173.04,173.01,8.01240428]
[1729995155680,7.3728,173.04,173.01,8.01240428]
[1729995160979,7.3728,173.04,173.0,2.8933]
[1729995160980,7.3728,173.04,173.0,10.90570428]
[1729995164979,4.48,173.04,173.0,8.01240428]
[1729995165682,7.3729,173.04,173.0,10.90580428]
[1729995166078,2.8933,173.01,172.97,10.90620428]
[1729995169082,2.8933,173.01,172.98,2.8938]
[1729995170090,2.8933,173.01,172.97,8.01240428]
[1729995170091,8.01240428,173.02,172.91,3.7032]
[1729995170284,2.8936,173.0,172.95,8.01240428]
[1729995170487,7.3736,173.0,172.95,8.01240428]
[1729995171391,7.3736,173.0,172.96,2.8941]
[1729995171586,4.48,173.0,172.95,8.01240428]
[1729995172178,4.48,173.0,172.97,8.01240428]
[1729995172790,7.3735,173.0,172.97,8.01240428]
[1729995173188,4.48,173.02,172.99,8.01240428]
[1729995173487,4.48,173.02,172.91,8.1832]
[1729995173488,4.48,173.02,173.01,8.01240428]
[1729995174079,7.3731,173.02,173.0,8.01240428]
[1729995175486,4.48,173.02,173.0,8.01240428]
[1729995179793,4.48,173.02,173.01,8.01240428]
[1729995180785,1.2074,173.1,173.01,8.01240428]
[1729995180991,4.44,173.09,173.04,8.01240428]
[1729995182394,2.8926,173.06,173.04,8.01240428]
[1729995182587,4.44,173.05,173.04,8.01240428]
[1729995183191,4.44,173.05,172.93,6.60977238]
[1729995183396,2.8931,173.02,172.93,4.44]
[1729995183594,4.44,173.01,172.92,5.16259664]
[1729995183795,2.8936,172.99,172.97,8.01240428]
[1729995183994,4.44,172.99,172.91,3.7032]
[1729995184303,4.44,172.99,172.95,8.01240428]
[1729995184601,2.8939,172.98,172.95,8.01240428]
[1729995185298,7.3337,172.99,172.95,8.01240428]
[1729995185495,8.01240428,172.97,172.75,5.7953]
[1729995185694,4.44,172.99,172.94,8.01240428]
[1729995186001,2.8938,172.98,172.96,8.01240428]
[1729995186208,4.44,172.97,172.96,8.01240428]
[1729995190098,2.8938,172.98,172.96,8.01240428]
[1729995190307,4.44,172.97,172.88,5.17534641]
[1729995190494,2.8934,173.01,172.97,8.01240428]
[1729995190699,4.44,173.0,172.97,8.01240428]
[1729995191909,7.3335,173.0,172.97,8.01240428]
[1729995192105,2.91464431,173.04,173.01,2.8932]
[1729995192315,4.44,173.05,173.03,8.01240428]
[1729995192506,4.44,173.04,172.94,4.44]
[1729995192707,4.44,173.04,172.95,5.17270211]
[1729995192907,4.44,173.04,172.94,5.88732425]
[1729995193109,4.44,173.04,172.95,5.17236462]
[1729995193305,4.44,173.04,173.03,2.8929]
[1729995193511,4.44,173.04,173.03,10.90530428]
[1729995195208,1.2736,173.1,173.03,8.01240428]
[1729995195517,1.2736,173.1,173.07,8.01240428]
[1729995195711,4.44,173.09,173.07,8.01240428]
[1729995196019,1.2736,173.1,173.07,8.01240428]
[1729995196220,4.44,173.08,173.07,8.01240428]
[1729995196921,4.44,173.08,173.0,1.1677]
[1729995196922,4.44,173.08,173.05,2.8925]
[1729995197113,4.44,173.08,173.06,8.01240428]
[1729995198513,7.3322,173.08,173.04,10.90520428]
[1729995200723,4.44,173.08,173.05,2.8926]
[1729995202323,4.44,173.08,173.04,8.01240428]
[1729995202324,4.44,173.08,173.04,10.90510428]
[1729995203025,4.44,173.08,173.0,1.1677]
[1729995203026,4.44,173.08,173.06,8.01240428]
[1729995203220,4.44,173.08,173.06,10.90480428]
[1729995205033,4.1654,173.1,173.06,10.90480428]
[1729995205222,4.44,173.09,173.06,10.90480428]
[1729995209728,4.44,173.09,172.99,1.1679]
[1729995209924,10.90500428,173.05,173.0,8.01240428]
[1729995210134,8.01240428,173.03,172.98,8.01240428]
[1729995210332,4.48,173.02,172.98,8.01240428]
[1729995210534,4.48,173.02,173.0,2.8934]
[1729995210736,4.48,173.02,172.93,2.3839]
[1729995210737,4.48,173.02,172.99,8.01240428]
[1729995210931,4.48,173.02,173.01,8.01240428]
[1729995211136,8.01240428,173.06,173.01,8.01240428]
[1729995211334,4.48,173.05,173.01,8.01240428]
[1729995212339,7.3726,173.05,173.01,10.90570428]
[1729995223641,4.48,173.05,172.96,5.18383461]
[1729995223843,8.01240428,172.99,172.93,12.26880204]
[1729995224143,4.48,172.98,172.93,8.01240428]
[1729995224847,7.3738,172.98,172.93,10.90690428]
[1729995225342,2.8942,172.96,172.93,8.01240428]
[1729995227547,2.8943,172.95,172.91,2.8948]
[1729995227739,4.48,172.94,172.91,10.90720428]
[1729995228647,4.48,172.93,172.91,10.90720428]
[1729995229970,4.48,172.93,172.91,8.01240428]
[1729995230146,4.48,172.93,172.92,2.8948]
[1729995232846,4.48,172.93,172.92,10.90720428]
[1729995241151,8.01240428,172.98,172.92,10.90720428]
[1729995241152,8.01240428,172.99,172.92,8.01240428]
[1729995241355,4.42,172.98,172.95,8.01240428]
[1729995241758,4.42,172.97,172.95,8.01240428]
[1729995242565,4.42,172.96,172.95,8.01240428]
[1729995244762,4.42,172.96,172.93,10.90700428]
[1729995245156,4.42,172.96,172.93,8.01240428]
[1729995245355,4.42,172.96,172.93,10.90690428]
[1729995246858,7.3142,172.96,172.93,10.90690428]
[1729995252171,56.24,173.01,172.95,8.01240428]
[1729995252468,4.42,173.0,172.97,8.01240428]
[1729995254264,2.8937,172.99,172.97,8.01240428]
[1729995255168,4.42,172.98,172.97,8.01240428]
[1729995255867,4.42,173.0,172.97,8.01240428]
[1729995256071,4.42,173.0,172.99,8.01240428]
[1729995256272,2.8926,173.05,173.01,2.8932]
[1729995256466,56.24,173.1,172.91,4.42]
[1729995256467,4.42,173.04,173.03,8.01240428]
[1729995262785,2.8925,173.06,173.03,8.01240428]
[1729995263083,4.42,173.05,173.03,8.01240428]
[1729995263884,4.42,173.05,173.02,10.90540428]
[1729995265186,4.42,173.04,173.02,10.90540428]
[1729995275285,2.8925,173.06,173.02,10.90540428]
[1729995275482,4.32,173.05,173.03,8.01240428]
[1729995284291,4.32,173.05,173.03,10.90530428]
[1729995286300,15.27164597,173.05,172.87,15.54794948]
[1729995286502,15.27164597,173.05,172.81,20.23581456]
[1729995286503,8.01240428,172.99,172.94,8.01240428]
[1729995286702,4.32,172.98,172.94,8.01240428]
[1729995287501,12.33240428,172.98,172.92,8.01240428]
[1729995289201,2.894,172.97,172.93,2.8945]
[1729995292011,2.894,172.97,172.94,8.01240428]
[1729995292509,4.32,172.98,172.96,8.01240428]
[1729995294403,4.32,172.98,172.96,10.90650428]
[1729995295114,4.32,172.98,172.96,8.01240428]
[1729995296314,4.32,172.98,172.95,10.90660428]
[1729995299222,2.8936,172.99,172.95,10.90660428]
[1729995299418,4.32,172.98,172.95,10.90660428]
[1729995300617,4.32,172.98,172.95,8.01240428]
[1729995301322,4.28,173.0,172.96,8.01240428]
[1729995301620,11.41378702,173.16,173.0,8.01240428]
[1729995301621,8.01240428,173.05,173.0,8.01240428]
[1729995301825,2.8931,173.03,173.0,8.01240428]
[1729995302125,8.01240428,173.03,172.98,8.01240428]
[1729995302417,2.8932,173.02,172.98,10.90600428]
[1729995303719,8.01240428,173.02,172.94,1.2832]
[1729995303922,8.01240428,173.0,172.95,8.01240428]
[1729995304121,4.10775608,173.07,172.95,8.01240428]
[1729995304122,12.29240428,172.99,172.95,8.01240428]
[1729995304328,4.28,172.98,172.95,8.01240428]
[1729995304630,4.28,172.98,172.94,1.2832]
[1729995304816,7.1738,172.98,172.94,4.1775]
[1729995305011,7.1738,172.98,172.94,1.2832]
[1729995305620,7.1738,172.98,172.93,8.01240428]
[1729995306321,7.1738,172.98,172.95,2.8943]
[1729995306725,4.28,172.98,172.93,8.01240428]
[1729995307029,2.8942,172.96,172.93,10.90690428]
[1729995307230,2.8942,172.96,172.91,8.01240428]
[1729995307432,10.90670428,172.95,172.92,2.8947]
[1729995307617,4.28,172.94,172.92,2.8947]
[1729995308518,8.01240428,172.93,172.88,1.1695]
[1729995308823,2.8948,172.92,172.88,9.18190428]
[1729995309530,2.8947,172.93,172.89,8.01240428]
[1729995310120,2.8947,172.93,172.89,10.90760428]
[1729995310725,2.8946,172.93,172.89,10.90770428]
[1729995312329,10.90700428,172.93,172.89,2.8953]
[1729995313135,8.01240428,172.92,172.86,8.01240428]
[1729995313330,2.895,172.91,172.87,2.8955]
[1729995313530,4.28,172.9,172.87,2.8955]
[1729995314433,12.29240428,172.9,172.83,1.189]
[1729995314628,8.01240428,172.88,172.84,8.08162564]
[1729995314828,8.01240428,172.87,172.84,2.8961]
[1729995315133,4.28,172.86,172.83,8.08236552]
[1729995315431,4.28,172.86,172.83,2.8962]
[1729995315933,4.28,172.86,172.81,9.26000428]
[1729995315934,8.01240428,172.84,172.81,1.2476]
[1729995316133,8.01240428,172.84,172.78,125.40848964]
[1729995316636,2.8961,172.85,172.8,8.01240428]
[1729995316930,2.8961,172.85,172.78,117.39608536]
[1729995317233,2.8961,172.85,172.8,8.01240428]
[1729995317939,1.2719,172.96,172.82,8.01240428]
[1729995318240,2.8955,172.88,172.83,10.90850428]
[1729995318440,4.28,172.87,172.83,10.90850428]
[1729995320139,8.01240428,172.89,172.83,8.01240428]
[1729995320331,4.28,172.88,172.83,8.01240428]
[1729995321035,8.01240428,172.89,172.83,8.01240428]
[1729995321238,7.1755,172.88,172.84,2.8961]
[1729995322246,4.28,172.88,172.85,2.8959]
[1729995322934,1.2719,172.96,172.85,8.01240428]
[1729995323135,8.01240428,172.9,172.86,2.8956]
[1729995323332,4.28,172.89,172.85,8.01240428]
[1729995323539,4.28,172.89,172.87,8.01240428]
[1729995324440,4.28,172.89,172.88,2.8955]
[1729995324746,4.28,172.89,172.87,8.01240428]
[1729995325742,4.28,172.89,172.88,2.8955]
[1729995326339,4.28,172.9,172.89,2.8951]
[1729995326541,4.28,172.9,172.89,10.90750428]
[1729995328447,8.01240428,172.96,172.94,2.8944]
[1729995328645,4.28,172.95,172.91,8.01240428]
[1729995329940,12.29240428,172.95,172.84,5.529]
[1729995330145,12.29240428,172.95,172.9,8.01240428]
[1729995331550,2.8946,172.94,172.9,8.01240428]
[1729995331850,8.01240428,172.92,172.86,8.01240428]
[1729995332045,4.32,172.91,172.89,2.8952]
[1729995338357,4.32,172.91,172.88,2.8953]
[1729995339255,4.32,172.91,172.87,8.01240428]
[1729995339447,4.32,172.91,172.89,2.8952]
[1729995340151,4.32,172.91,172.83,1.2108]
[1729995340346,4.32,172.91,172.88,2.8954]
[1729995341755,4.32,172.91,172.87,8.01240428]
[1729995342056,4.32,172.91,172.89,2.8952]
[1729995346363,8.01240428,172.9,172.86,2.8956]
[1729995346554,8.01240428,172.88,172.83,8.01240428]
[1729995346757,4.32,172.87,172.83,8.01240428]
[1729995347362,4.32,172.87,172.85,2.8959]
[1729995347966,4.32,172.87,172.83,8.01240428]
[1729995348159,12.33240428,172.87,172.83,2.8962]
[1729995348960,12.33240428,172.87,172.81,8.01240428]
[1729995349162,12.33240428,172.87,172.84,2.8961]
[1729995351359,15.22810428,172.87,172.83,2.8961]
[1729995352254,15.22810428,172.87,172.84,2.8961]
[1729995352860,8.01240428,172.85,172.76,10.58608888]
[1729995353061,10.90840428,172.85,172.82,2.8964]
[1729995353261,8.01240428,172.86,172.82,2.8964]
[1729995354370,10.90820428,172.86,172.82,2.8964]
[1729995355059,2.896,172.85,172.82,2.8964]
[1729995355355,10.90840428,172.85,172.82,2.8964]
[1729995355955,8.01240428,172.84,172.8,2.8966]
[1729995356163,2.8442655,172.89,172.78,8.01240428]
[1729995356164,8.01240428,172.82,172.78,8.01240428]
[1729995356370,8.01240428,172.81,172.76,6.41640395]
[1729995356558,8.01240428,172.81,172.76,9.24790428]
[1729995357162,10.90920428,172.81,172.76,12.14530428]
[1729995357366,8.01240428,172.8,172.76,10.90980428]
[1729995357670,4.32,172.79,172.76,10.90980428]
[1729995359869,4.32,172.79,172.76,2.8974]
[1729995360173,12.33240428,172.79,172.76,2.8974]
[1729995360376,8.01240428,172.77,172.74,115.98847203]
[1729995360670,8.01240428,172.77,172.74,113.09077203]
[1729995361372,8.01240428,172.77,172.75,2.8975]
[1729995362775,8.01240428,172.77,172.74,113.09077203]
[1729995362979,4.32,172.79,172.74,113.09077203]
[1729995362980,4.32,172.79,172.77,2.8972]
[1729995365681,8.01240428,172.78,172.76,2.8974]
[1729995367279,8.01240428,172.77,172.74,113.09077203]
[1729995367478,8.01240428,172.75,172.7,9.18300428]
[1729995367683,4.28,172.74,172.7,9.18300428]
[1729995368277,4.28,172.74,172.73,2.898]
[1729995369677,2.8967,172.81,172.77,2.8972]
[1729995369882,12.29240428,172.8,172.74,8.01240428]
[1729995370180,8.01240428,172.78,172.74,2.8977]
[1729995370578,8.01240428,172.78,172.73,8.01240428]
[1729995370780,10.90950428,172.78,172.73,8.01240428]
[1729995371383,10.90950428,172.78,172.74,2.8976]
[1729995372283,8.01240428,172.77,172.74,2.8976]
[1729995372787,8.01240428,172.75,172.74,2.8976]
[1729995372986,12.29240428,172.75,172.74,2.8976]
[1729995384796,2.8978,172.74,172.7,1.1706]
[1729995385097,8.01240428,172.71,172.67,1.2083]
[1729995385300,4.28,172.7,172.67,1.2083]
[1729995385800,4.28,172.7,172.69,2.8985]
[1729995386595,4.28,172.7,172.61,5.18267387]
[1729995386893,8.01240428,172.69,172.64,8.01240428]
[1729995387301,8.01240428,172.68,172.62,8.01240428]
[1729995387495,8.01240428,172.68,172.61,2.5456]
[1729995387695,8.01240428,172.68,172.61,10.55800428]
[1729995388608,8.01240428,172.66,172.61,2.5456]
[1729995388801,4.28,172.65,172.62,2.8998]
[1729995389008,12.29240428,172.65,172.62,2.8998]
[1729995393813,4.28,172.65,172.64,2.8995]
[1729995394214,12.29240428,172.65,172.6,1.2138]
[1729995394513,12.29240428,172.65,172.63,2.8996]
[1729995395812,12.29240428,172.65,172.64,2.8995]
[1729995396122,4.28,172.65,172.64,2.8995]
[1729995397117,4.28,172.65,172.62,2.8997]
[1729995397522,8.01240428,172.64,172.59,8.01240428]
[1729995397820,4.28,172.65,172.61,8.01240428]
[1729995398009,4.28,172.65,172.64,2.8995]
[1729995399118,4.28,172.65,172.63,2.8996]
[1729995401818,4.28,172.65,172.6,8.01240428]
[1729995402811,4.28,172.65,172.63,2.8995]
[1729995404118,4.28,172.65,172.64,2.8995]
[1729995407717,4.28,172.65,172.61,8.01240428]
[1729995407919,4.28,172.65,172.64,2.8995]
[1729995409718,12.29240428,172.65,172.57,1.1801]
[1729995409918,8.01240428,172.59,172.57,1.1801]
[1729995410112,4.28,172.58,172.55,1.2681]
[1729995411314,4.28,172.58,172.57,2.9007]
[1729995412427,4.28,172.58,172.57,10.91310428]
[1729995414211,4.28,172.58,172.57,2.9007]
[1729995414817,4.28,172.58,172.55,1.2681]
[1729995415024,4.28,172.58,172.57,2.9007]
[1729995419620,12.29240428,172.58,172.57,2.9007]
[1729995420628,12.29240428,172.58,172.56,2.9008]
[1729995420836,12.29240428,172.58,172.53,8.01240428]
[1729995421934,4.28,172.58,172.57,2.9007]
[1729995424038,8.01240428,172.6,172.56,8.01240428]
[1729995424236,4.28,172.59,172.56,8.01240428]
[1729995424938,4.28,172.59,172.58,2.9005]
[1729995425533,2.4138,172.65,172.56,8.01240428]
[1729995425731,8.01240428,172.62,172.61,2.8999]
[1729995425933,12.29240428,172.62,172.61,2.8999]